bitfinex-derivatives/quotes_ETHF0:USTF0_20250518
["timestamp","ask_amount","ask_price","bid_price","bid_amount"]
[1747527576325,1.00819634,2480.5,2480.4,5.33608]
[1747527576519,1.00819634,2480.5,2480.4,7.83063785]
[1747527577615,1.00819634,2480.5,2480.4,16.77298]
[1747527577825,1.81414634,2480.5,2480.4,16.77298]
[1747527578127,1.81414634,2480.5,2480.4,0.80598]
[1747527578929,1.00819634,2480.5,2480.1,3.834]
[1747527579125,1.2971,2480.4,2479.8,1.20549757]
[1747527579330,3.2078,2480.2,2479.9,0.80614]
[1747527579528,2.10321,2480.1,2479.9,0.80614]
[1747527579728,1.2971,2480.0,2479.9,0.80614]
[1747527580123,1.2971,2480.0,2479.8,5.48442405]
[1747527580423,0.80615,2479.9,2479.8,1.20549757]
[1747527581115,4.01395,2479.9,2479.8,1.20549757]
[1747527582223,3.2078,2479.9,2479.6,0.80623]
[1747527582528,2.6782,2479.8,2479.6,0.80623]
[1747527582731,1.3351,2479.7,2479.6,0.80623]
[1747527583230,2.14131,2479.7,2479.6,0.80623]
[1747527583527,1.3351,2479.7,2479.6,0.80623]
[1747527584033,2.14131,2479.7,2479.6,0.80623]
[1747527586328,0.80624,2479.6,2479.5,8.79025]
[1747527586631,2.18264,2479.6,2479.5,8.79025]
[1747527586927,1.3764,2479.6,2479.5,8.79028]
[1747527587933,0.80633,2479.4,2479.2,3.2078]
[1747527588230,3.2078,2479.9,2479.8,0.80618]
[1747527588432,0.80618,2479.8,2479.7,0.80619]
[1747527588728,4.01397,2479.9,2479.8,0.80618]
[1747527589335,2.09759,2480.1,2480.0,0.80611]
[1747527589533,1.2915,2480.1,2480.0,0.80611]
[1747527590031,1.2915,2480.1,2479.9,0.80612]
[1747527590329,0.80613,2480.0,2479.9,0.80612]
[1747527590523,2.0976,2480.1,2480.0,0.80611]
[1747527592331,0.80613,2480.0,2479.9,0.80613]
[1747527592832,0.80615,2479.9,2479.8,0.6928]
[1747527593031,4.01395,2479.9,2479.8,0.6928]
[1747527593834,3.2078,2479.9,2479.8,0.6928]
[1747527594134,3.2078,2480.2,2480.1,0.80608]
[1747527595536,3.2078,2480.2,2480.1,1.48318]
[1747527595730,3.2078,2480.2,2480.1,2.73728]
[1747527597829,1.00819634,2480.3,2480.2,0.80605]
[1747527598034,1.00819634,2480.3,2480.2,2.19095]
[1747527598723,1.00819634,2480.5,2480.4,0.80598]
[1747527599338,1.00819634,2480.5,2480.4,2.08238]
[1747527600236,1.81414634,2480.5,2480.4,2.08238]
[1747527600839,0.80598,2480.4,2480.3,1.47879]
[1747527601136,2.1856,2480.4,2480.3,0.80602]
[1747527601528,0.80602,2480.3,2480.2,0.80605]
[1747527601824,2.0388,2480.3,2480.2,0.80605]
[1747527602240,1.00819634,2480.5,2480.4,0.80598]
[1747527602432,1.66749634,2480.5,2480.4,0.80598]
[1747527603236,2.47344634,2480.5,2480.4,0.80598]
[1747527603538,1.46525,2480.5,2480.4,0.80598]
[1747527603738,2.71515,2480.5,2480.4,0.80598]
[1747527604038,1.9092,2480.5,2480.4,0.80598]
[1747527604533,3.2078,2480.6,2480.5,0.80595]
[1747527604729,3.2078,2480.6,2480.5,2.07265]
[1747527604929,3.2078,2480.6,2480.5,2.71815]
[1747527605840,3.2078,2480.6,2480.5,0.80595]
[1747527606042,0.80595,2480.5,2480.4,8.78396]
[1747527606234,1.8972,2480.5,2480.4,8.78396]
[1747527606537,1.8972,2480.5,2480.4,0.80596]
[1747527606733,0.80605,2480.2,2480.1,0.6771]
[1747527606931,0.80604,2480.3,2480.2,0.80604]
[1747527607128,0.80603,2480.3,2480.2,0.80602]
[1747527607641,2.0754,2480.4,2480.3,0.80602]
[1747527608034,3.8356,2480.5,2480.4,0.80598]
[1747527608235,3.2078,2480.5,2480.4,0.80598]
[1747527608630,4.01375,2480.5,2480.4,0.80598]
[1747527608836,4.01375,2480.5,2480.4,2.16758]
[1747527609132,3.2078,2480.5,2480.1,0.6771]
[1747527609335,0.8061,2480.1,2480.0,0.8061]
[1747527610235,2.0136,2480.2,2480.1,0.80608]
[1747527610634,1.3488,2480.2,2480.1,0.80608]
[1747527610832,1.3488,2480.2,2480.1,2.80868]
[1747527612344,3.2078,2480.5,2480.4,0.80598]
[1747527612743,4.01377,2480.5,2480.4,0.80598]
[1747527612944,5.26917,2480.5,2480.4,0.80598]
[1747527613145,6.27736634,2480.5,2480.4,0.80598]
[1747527613745,6.27736634,2480.5,2480.2,1.3708]
[1747527613746,0.806,2480.4,2480.3,0.806]
[1747527613938,0.806,2480.4,2480.2,1.3708]
[1747527613939,0.80602,2480.3,2480.2,1.3708]
[1747527614142,1.2554,2480.4,2479.9,11.1858]
[1747527614353,0.80611,2480.1,2480.0,0.80611]
[1747527614842,0.80611,2480.0,2479.9,21.23763]
[1747527615343,2.14681,2480.0,2479.9,4.4775]
[1747527615536,2.14681,2480.0,2479.9,3.2078]
[1747527615937,1.3407,2480.0,2479.9,4.01395]
[1747527616436,2.14681,2480.0,2479.9,3.2078]
[1747527616636,0.80618,2479.8,2479.7,7.978]
[1747527616844,0.80621,2479.7,2479.6,4.01402]
[1747527617045,2.14691,2479.7,2479.6,8.34815477]
[1747527617245,1.3407,2479.7,2479.6,4.01402]
[1747527617547,2.14691,2479.7,2479.6,4.01402]
[1747527617946,1.3407,2479.7,2479.6,4.01402]
[1747527618949,2.14691,2479.7,2479.6,4.01402]
[1747527619156,2.14691,2479.7,2479.6,3.2078]
[1747527619449,1.3407,2479.7,2479.6,0.80624]
[1747527620057,1.3407,2479.7,2479.4,1.85789757]
[1747527620351,1.49147,2479.6,2479.5,0.80628]
[1747527620753,0.80628,2479.5,2479.4,0.80629]
[1747527620948,2.13038,2479.5,2479.4,0.80629]
[1747527621148,1.3241,2479.5,2479.4,0.80629]
[1747527621848,2.13038,2479.5,2479.4,0.80629]
[1747527623253,0.80637,2479.2,2479.1,1.20549757]
[1747527623451,0.80647,2478.9,2478.8,2.01199757]
[1747527623655,0.80646,2479.0,2478.8,1.20549757]
[1747527623850,0.80646,2479.0,2478.9,0.80645]
[1747527624350,0.6435,2479.1,2479.0,0.80644]
[1747527624351,1.44992,2479.1,2479.0,0.80644]
[1747527624855,0.80644,2479.0,2478.9,0.80645]
[1747527625153,0.80647,2478.9,2478.8,1.20549757]
[1747527625355,1.47867,2478.9,2478.8,1.20549757]
[1747527626952,3.88,2478.9,2478.4,4.5864]
[1747527627157,0.80663,2478.4,2478.3,1.2942]
[1747527628148,2.69106,2478.5,2478.0,5.75290704]
[1747527628352,0.80673,2478.1,2478.0,5.75290704]
[1747527628557,0.80673,2478.1,2478.0,2.54510704]
[1747527629759,0.80673,2478.1,2478.0,1.20549757]
[1747527630158,3.2078,2478.3,2478.2,0.8067]
[1747527631060,4.01447,2478.3,2478.1,2.17271]
[1747527631259,0.8067,2478.2,2478.1,1.366]
[1747527631454,0.8067,2478.2,2477.7,1.2942]
[1747527631455,3.2078,2478.3,2477.7,1.2942]
[1747527631758,0.80679,2478.0,2477.8,0.80683]
[1747527632262,0.80675,2478.1,2477.9,0.80677]
[1747527632463,1.47982,2478.2,2478.0,0.80676]
[1747527632763,0.80675,2478.1,2477.9,0.80678]
[1747527632962,0.80676,2478.0,2477.8,2.17281]
[1747527633166,0.8068,2477.9,2477.8,1.366]
[1747527633372,0.80683,2477.8,2477.7,1.2942]
[1747527633562,0.6782,2477.8,2477.7,2.10106]
[1747527633865,1.48503,2477.8,2477.7,2.5782]
[1747527634562,1.48503,2477.8,2477.1,4.54740947]
[1747527634563,0.6782,2477.8,2477.1,4.54740947]
[1747527634761,3.2078,2477.6,2477.3,7.98]
[1747527634962,4.01472,2477.6,2477.4,0.80695]
[1747527635164,0.80693,2477.5,2477.3,10.07098]
[1747527635467,0.80696,2477.4,2477.3,9.264]
[1747527635664,0.80703,2477.2,2477.1,4.60283957]
[1747527635867,0.80703,2477.2,2477.1,0.08073957]
[1747527636663,5.80703,2477.2,2477.1,0.1729196]
[1747527636858,2.01766,2477.1,2476.2,8.0473846]
[1747527637158,0.80721,2476.7,2476.4,2.54499757]
[1747527637364,0.80721,2476.7,2476.5,2.6744]
[1747527637565,0.80722,2476.6,2476.5,2.6744]
[1747527637770,4.01497,2476.8,2476.5,3.48163]
[1747527637955,0.80717,2476.8,2476.5,2.6744]
[1747527638153,0.80717,2476.8,2476.5,5.7324]
[1747527638559,0.80717,2476.8,2476.5,6.53963]
[1747527638856,0.80719,2476.7,2476.5,6.53963]
[1747527639058,0.80717,2476.8,2476.5,6.53963]
[1747527639460,3.2078,2477.1,2476.5,5.7324]
[1747527639671,0.80722,2476.6,2476.5,5.7324]
[1747527639868,0.8072,2476.7,2476.5,6.53965]
[1747527640062,0.80717,2476.8,2476.6,0.80721]
[1747527640367,0.80718,2476.8,2476.6,0.80722]
[1747527640664,0.8072,2476.7,2476.5,6.53964]
[1747527640876,1.2651,2476.7,2476.6,0.80722]
[1747527642070,2.0723,2476.7,2476.5,6.53963]
[1747527642267,0.80722,2476.6,2476.5,3.058]
[1747527642459,2.77572,2476.6,2476.5,3.058]
[1747527643167,0.80729,2476.4,2476.3,1.2934]
[1747527643365,3.2078,2476.5,2476.3,1.2934]
[1747527643565,2.11252,2476.6,2476.4,0.80726]
[1747527643761,0.80725,2476.5,2476.3,1.2934]
[1747527644080,0.80726,2476.5,2476.3,2.1007]
[1747527644267,2.11252,2476.6,2476.4,0.80729]
[1747527644572,2.11252,2476.6,2476.5,1.2934]
[1747527644770,0.80729,2476.4,2476.3,3.058]
[1747527645263,0.80732,2476.3,2476.2,0.0673846]
[1747527645462,2.73052,2476.3,2476.2,0.0673846]
[1747527646060,0.80761,2475.4,2475.3,3.2078]
[1747527646270,3.2078,2475.4,2475.0,1.3855]
[1747527646468,0.80771,2475.1,2475.0,1.3855]
[1747527646663,0.80771,2475.2,2475.0,2.19324]
[1747527646873,2.09927,2475.3,2475.0,2.19324]
[1747527647069,1.2916,2475.3,2475.2,0.80768]
[1747527647377,0.80766,2475.3,2475.1,4.67594667]
[1747527647674,0.80766,2475.3,2475.2,1.3855]
[1747527647874,2.14066,2475.3,2475.2,1.3855]
[1747527648169,0.80768,2475.2,2475.1,3.058]
[1747527648377,2.14068,2475.2,2475.1,3.058]
[1747527648575,18.17868,2475.2,2475.1,3.058]
[1747527649071,2.14068,2475.2,2475.1,3.058]
[1747527649276,0.80778,2474.9,2474.8,4.26349757]
[1747527649675,3.2078,2475.1,2474.9,0.80775]
[1747527649876,1.333,2475.2,2475.0,1.3759]
[1747527650177,1.333,2475.2,2475.0,5.24163]
[1747527650773,1.333,2475.2,2475.1,0.09218003]
[1747527650974,0.6316,2475.5,2475.1,0.09218003]
[1747527651178,17.48518,2475.5,2475.3,0.80762]
[1747527651480,17.4852,2475.5,2475.2,2.77985]
[1747527651671,17.4852,2475.5,2475.3,2.11624]
[1747527651871,1.3472,2475.4,2475.3,2.11624]
[1747527652069,16.054,2475.6,2475.3,4.3666]
[1747527652271,0.80751,2475.7,2475.3,4.3666]
[1747527652570,2.15471,2475.7,2475.5,0.80758]
[1747527652773,0.80761,2475.4,2475.3,4.3666]
[1747527652971,0.80759,2475.5,2475.3,4.3666]
[1747527653168,1.3472,2475.4,2475.3,4.3666]
[1747527653471,2.15481,2475.4,2475.3,4.3666]
[1747527653771,5.36261,2475.4,2475.3,3.058]
[1747527653971,4.555,2475.4,2475.3,3.058]
[1747527654378,5.36261,2475.4,2475.3,3.058]
[1747527654579,4.555,2475.4,2475.3,3.058]
[1747527654877,5.36261,2475.4,2475.3,3.058]
[1747527656373,2.15481,2475.4,2475.3,3.058]
[1747527657480,2.15481,2475.4,2475.3,4.308]
[1747527657879,3.2078,2475.7,2475.3,4.308]
[1747527658179,0.80761,2475.4,2475.3,5.11563]
[1747527658579,0.80761,2475.4,2475.3,4.308]
[1747527659082,1.2888,2475.5,2475.3,5.11563]
[1747527659284,0.80761,2475.4,2475.3,4.308]
[1747527659475,0.80761,2475.4,2475.3,3.058]
[1747527660779,4.01541,2475.4,2475.3,3.058]
[1747527661080,9.01541,2475.4,2475.3,3.058]
[1747527661282,0.80768,2475.2,2475.1,0.09218003]
[1747527661582,0.80791,2474.5,2474.4,1.3316]
[1747527661782,0.80791,2474.5,2474.4,2.6998]
[1747527662183,1.3861,2474.8,2474.4,5.7578]
[1747527662384,0.80789,2474.6,2474.4,6.56573]
[1747527662978,0.80791,2474.5,2474.4,5.7578]
[1747527663177,0.80791,2474.5,2474.4,3.058]
[1747527663682,2.75021,2474.5,2474.4,3.058]
[1747527664081,1.9423,2474.5,2474.4,3.058]
[1747527664277,2.75021,2474.5,2474.4,3.058]
[1747527664474,1.9423,2474.5,2474.4,3.86594]
[1747527664672,19.3248,2474.9,2474.4,3.058]
[1747527664889,0.80785,2474.7,2474.5,2.81079]
[1747527665385,0.80787,2474.6,2474.5,2.0029]
[1747527665579,0.80791,2474.5,2474.4,3.15018003]
[1747527665887,3.2078,2474.6,2474.4,3.15018003]
[1747527666185,4.01567,2474.6,2474.5,2.18751]
[1747527666486,3.2078,2474.9,2474.8,0.80781]
[1747527666693,3.2078,2475.5,2474.8,19.3588]
[1747527666984,0.80763,2475.4,2475.2,0.80765]
[1747527667185,2.13333,2475.4,2475.3,1.3796]
[1747527667790,1.3257,2475.4,2475.3,1.3796]
[1747527668085,3.2078,2475.5,2475.3,4.4376]
[1747527668286,4.0154,2475.5,2475.3,5.24524]
[1747527668784,3.2078,2475.5,2475.4,0.80761]
[1747527668994,3.2078,2475.5,2475.4,2.18721]
[1747527669186,4.01538,2475.5,2475.4,4.4376]
[1747527669877,3.2078,2475.5,2475.4,5.24521]
[1747527670089,3.2078,2475.8,2475.6,0.80753]
[1747527670286,4.01529,2475.8,2475.4,4.4376]
[1747527670488,0.80754,2475.7,2475.4,4.4376]
[1747527670691,2.11334,2475.7,2475.4,4.4376]
[1747527670994,2.11334,2475.7,2475.4,5.24519]
[1747527671291,0.80756,2475.6,2475.4,5.24519]
[1747527671489,0.80756,2475.6,2475.4,5.24521]
[1747527671789,0.80756,2475.6,2475.4,4.4376]
[1747527671984,1.3058,2475.7,2475.4,4.4376]
[1747527672178,2.11332,2475.7,2475.5,0.80756]
[1747527672378,2.11332,2475.7,2475.6,1.2755]
[1747527672591,3.2078,2475.8,2475.6,1.2755]
[1747527672785,3.2078,2475.8,2475.7,0.80751]
[1747527673993,0.80741,2476.1,2475.9,0.80743]
[1747527674291,0.80741,2476.1,2476.0,1.2755]
[1747527674493,0.80741,2476.1,2476.0,2.08292]
[1747527674693,0.80741,2476.1,2476.0,1.2755]
[1747527675088,0.80741,2476.1,2476.0,4.3335]
[1747527675696,0.80738,2476.2,2476.0,5.14092]
[1747527675995,3.2078,2476.3,2476.0,4.3335]
[1747527676291,0.80738,2476.1,2476.0,4.3335]
[1747527677393,0.80738,2476.1,2476.0,3.058]
[1747527677693,6.46648,2476.1,2476.0,2.42037724]
[1747527678095,0.80751,2475.8,2475.6,0.80754]
[1747527678295,1.2633,2475.7,2475.6,0.80754]
[1747527678997,1.2633,2475.7,2475.5,2.10936]
[1747527679196,2.07083,2475.7,2475.5,5.16736]
[1747527679493,2.07083,2475.7,2475.5,3.86557]
[1747527679698,1.2633,2475.7,2475.6,0.80755]
[1747527679890,0.6591,2476.1,2475.5,5.0769]
[1747527680090,1.2633,2476.2,2476.1,0.80738]
[1747527680491,3.2078,2476.3,2476.2,0.80735]
[1747527683899,0.80729,2476.4,2476.2,0.80735]
[1747527684096,2.07057,2476.5,2476.3,2.1698]
[1747527684288,3.2078,2476.4,2476.3,6.68229507]
[1747527684603,2.01510854,2476.8,2476.7,0.80719]
[1747527684796,0.66480854,2476.8,2476.7,0.80719]
[1747527685098,1.47197854,2476.8,2476.6,3.8652]
[1747527685300,1.47197854,2476.8,2476.6,3.058]
[1747527685498,0.66480854,2476.8,2476.7,2.16969]
[1747527685801,0.66480854,2476.8,2476.7,6.81726046]
[1747527686102,0.66480854,2476.8,2476.7,11.81726046]
[1747527686702,0.66480854,2476.9,2476.8,0.80716]
[1747527687000,0.66480854,2476.9,2476.8,14.66824668]
[1747527687194,0.66480854,2476.9,2476.8,22.72624668]
[1747527687801,1.34061831,2477.4,2477.0,0.80709]
[1747527687996,1.34061831,2477.4,2477.3,0.80699]
[1747527688296,1.34061831,2477.4,2477.3,3.86499]
[1747527688499,1.34061831,2477.4,2477.3,5.13109]
[1747527688906,2.14757831,2477.4,2477.3,3.058]
[1747527689200,2.14757831,2477.4,2477.2,0.80702]
[1747527689404,1.3066,2477.3,2477.2,0.80702]
[1747527689596,2.1136,2477.3,2477.1,2.13315]
[1747527689897,2.1136,2477.3,2477.2,1.2661]
[1747527691295,1.3066,2477.3,2477.0,11.152]
[1747527691496,0.80706,2477.1,2477.0,11.152]
[1747527691693,0.80706,2477.1,2477.0,3.058]
[1747527691895,2.73246,2477.1,2477.0,3.058]
[1747527692092,2.01776,2477.0,2476.4,9.4154]
[1747527692297,0.80725,2476.5,2476.4,9.4154]
[1747527692607,0.80721,2476.7,2476.5,0.80724]
[1747527692798,2.10772,2476.6,2476.5,1.3214]
[1747527693108,2.10772,2476.6,2476.5,4.3794]
[1747527693410,1.3005,2476.6,2476.5,5.18665]
[1747527693592,1.3005,2476.6,2476.5,4.3794]
[1747527693795,4.5083,2476.6,2476.5,4.3794]
[1747527693996,2.10772,2476.6,2476.5,4.3794]
[1747527694496,5.31552,2476.6,2476.5,4.3794]
[1747527694704,5.31552,2476.6,2476.5,3.058]
[1747527695005,2.10772,2476.6,2476.5,3.058]
[1747527695297,3.8538,2476.9,2476.5,3.058]
[1747527695503,1.2566,2476.8,2476.7,0.80718]
[1747527695691,3.2078,2476.9,2476.8,0.80716]
[1747527695898,0.80706,2477.1,2476.9,0.80709]
[1747527696093,2.06366,2477.1,2476.9,0.80709]
[1747527696303,3.2078,2477.0,2476.7,2.6114]
[1747527696602,0.80716,2476.8,2476.6,0.80721]
[1747527696802,1.3696,2476.7,2476.6,0.80721]
[1747527697397,2.1768,2476.7,2476.5,13.90774]
[1747527697596,1.3696,2476.7,2476.6,0.80722]
[1747527697799,2.17679,2476.7,2476.5,13.90774]
[1747527697999,0.80722,2476.6,2476.5,3.6908]
[1747527698202,2.17682,2476.6,2476.5,11.7848]
[1747527698396,2.17682,2476.6,2476.5,11.95925]
[1747527698593,2.17682,2476.6,2476.5,11.152]
[1747527698798,1.3696,2476.6,2476.5,11.95925]
[1747527699099,1.3696,2476.6,2476.5,13.90775]
[1747527700405,1.3696,2476.6,2476.5,3.058]
[1747527700406,2.17682,2476.6,2476.5,3.058]
[1747527700898,1.3696,2476.6,2476.5,3.86525]
[1747527701103,1.3696,2476.6,2476.5,5.21455]
[1747527701400,3.2078,2476.9,2476.5,4.4073]
[1747527701703,5.38473,2476.9,2476.8,0.80716]
[1747527701899,4.5776,2476.9,2476.8,0.80716]
[1747527702101,3.2078,2476.9,2476.8,0.80716]
[1747527702301,0.8071,2477.0,2476.9,0.80709]
[1747527702501,0.80714,2476.9,2476.8,0.80714]
[1747527703213,0.80714,2476.9,2476.8,3.86514]
[1747527703406,0.80714,2476.9,2476.8,3.058]
[1747527704205,2.05894,2476.9,2476.8,0.80716]
[1747527704607,0.80716,2476.8,2476.7,10.16467]
[1747527704809,3.2078,2477.3,2477.0,0.80706]
[1747527705107,2.05886,2477.1,2477.0,0.80709]
[1747527705307,0.8071,2477.0,2476.9,0.8071]
[1747527705501,0.80712,2476.9,2476.8,1.283]
[1747527705704,1.3342,2477.0,2476.7,17.66518]
[1747527705911,0.8071,2477.0,2476.9,0.80711]
[1747527706414,0.80712,2476.9,2476.8,1.283]
[1747527706613,0.80712,2476.9,2476.8,2.09016]
[1747527707010,0.80712,2476.9,2476.8,1.283]
[1747527707210,0.80714,2476.9,2476.8,0.80716]
[1747527707509,0.80713,2476.9,2476.7,16.858]
[1747527708318,3.2078,2477.0,2476.6,16.178]
[1747527708512,0.80721,2476.7,2476.6,16.178]
[1747527708706,0.80721,2476.7,2476.6,4.44442048]
[1747527708910,4.01501,2476.7,2476.6,4.44442048]
[1747527709717,4.01499,2476.7,2476.6,4.44442048]
[1747527711222,4.01499,2476.7,2476.6,4.45547795]
[1747527711617,4.01499,2476.7,2476.6,0.01105747]
[1747527712624,3.2078,2476.7,2476.6,0.01105747]
[1747527712826,4.01499,2476.7,2476.6,0.01105747]
[1747527716222,3.2078,2476.7,2476.6,0.81827747]
[1747527717420,4.01499,2476.7,2476.6,0.01105747]
[1747527717622,4.01499,2476.7,2476.6,1.28545747]
[1747527719523,3.2078,2476.7,2476.6,2.09267747]
[1747527719718,0.8071,2477.0,2476.9,0.8071]
[1747527720122,3.20899011,2477.1,2477.0,0.80709]
[1747527720420,3.20899011,2477.1,2477.0,7.48034788]
[1747527720621,3.20899011,2477.1,2477.0,7.35825788]
[1747527720821,0.80709,2477.0,2476.9,3.058]
[1747527721024,5.98559,2477.0,2476.9,3.058]
[1747527721225,0.80719,2476.7,2476.6,0.01105747]
[1747527722328,4.01499,2476.7,2476.6,0.01105747]
[1747527722720,3.2078,2476.7,2476.6,0.01105747]
[1747527722927,4.01499,2476.7,2476.6,0.01105747]
[1747527723229,3.2078,2476.7,2476.6,0.81827747]
[1747527723618,3.2078,2476.7,2476.6,2.12697747]
[1747527724323,0.80716,2476.8,2476.6,2.12697747]
[1747527724623,0.80716,2476.8,2476.7,1.3786]
[1747527725126,2.17608,2476.8,2476.6,2.12696747]
[1747527725524,1.3689,2476.8,2476.7,0.80719]
[1747527725718,3.20899011,2476.9,2476.8,0.80716]
[1747527725924,2.0171,2477.0,2476.9,0.80712]
[1747527726518,2.0171,2477.0,2476.9,2.18572]
[1747527726725,1.3689,2477.0,2476.9,2.18572]
[1747527727225,3.2078,2477.1,2477.0,0.80709]
[1747527727415,3.2078,2477.1,2477.0,2.15009]
[1747527727623,3.20899011,2477.2,2477.1,0.80706]
[1747527727822,3.20899011,2477.2,2477.1,4.67756]
[1747527728024,10.96758865,2477.5,2477.4,0.80696]
[1747527728222,10.96758865,2477.5,2477.4,20.05796]
[1747527728425,10.96758865,2477.5,2477.4,29.55538963]
[1747527728932,1.34061831,2477.5,2477.4,30.67679607]
[1747527729126,1.34061831,2477.5,2477.4,9.48379607]
[1747527729331,5.35534831,2477.5,2477.4,4.17940644]
[1747527729833,1.34061831,2477.5,2477.4,4.98636644]
[1747527730033,1.34061831,2477.5,2477.4,8.42345052]
[1747527730226,1.34061831,2477.5,2477.4,11.08445052]
[1747527730535,2.14754831,2477.5,2477.4,3.058]
[1747527730729,4.14814831,2477.5,2477.4,3.058]
[1747527730937,7.35594831,2477.5,2477.4,3.058]
[1747527731128,0.80699,2477.4,2477.2,18.28049757]
[1747527731425,1.99721831,2477.5,2477.4,0.80696]
[1747527731629,2.68461831,2477.5,2477.4,0.80696]
[1747527732028,3.49154831,2477.5,2477.4,1.3569]
[1747527732431,2.68461831,2477.5,2477.4,2.16386]
[1747527733434,2.68461831,2477.5,2477.4,1.3569]
[1747527733636,2.68461831,2477.5,2477.4,2.16386]
[1747527733832,1.344,2477.5,2477.4,2.16386]
[1747527734144,4.5518,2477.5,2477.1,2.11113]
[1747527734434,0.80704,2477.2,2477.0,1.2964]
[1747527734624,1.2594,2477.1,2477.0,2.10347]
[1747527735235,1.2594,2477.1,2477.0,5.16147]
[1747527735942,3.2078,2477.5,2477.0,4.3544]
[1747527736235,0.807,2477.3,2477.2,0.807]
[1747527736434,1.3116,2477.4,2477.3,0.80699]
[1747527736930,1.3116,2477.4,2477.2,0.80702]
[1747527737130,0.80701,2477.3,2477.2,2.18802]
[1747527737437,1.3116,2477.4,2477.1,3.058]
[1747527737639,2.11863,2477.2,2477.1,3.058]
[1747527737829,1.3116,2477.2,2477.1,3.86506]
[1747527738330,1.3116,2477.2,2477.1,0.80706]
[1747527738636,2.11863,2477.2,2477.1,2.18806]
[1747527738840,0.80706,2477.1,2477.0,3.058]
[1747527739036,2.09816,2477.1,2477.0,3.86509]
[1747527739237,2.76316,2477.1,2477.0,0.80709]
[1747527739739,1.9561,2477.1,2477.0,0.80709]
[1747527739938,0.807,2477.3,2477.2,0.80701]
[1747527740242,0.80707,2477.1,2477.0,0.80708]
[1747527741343,2.09815,2477.2,2477.1,0.80706]
[1747527742040,0.80709,2477.0,2476.9,1.3679]
[1747527742339,0.80716,2476.8,2476.7,11.2768]
[1747527742544,0.80716,2476.8,2476.7,3.2078]
[1747527743031,2.18086,2476.8,2476.7,3.2078]
[1747527743226,1.3737,2476.8,2476.7,4.01499]
[1747527743431,4.01483,2477.2,2477.1,0.80706]
[1747527743632,4.01483,2477.2,2476.8,1.9681]
[1747527743835,2.18076,2477.1,2477.0,0.80707]
[1747527744139,0.80709,2477.0,2476.9,5.41107865]
[1747527744338,2.18079,2477.0,2476.9,5.41107865]
[1747527744536,2.18079,2477.0,2476.9,4.60396865]
[1747527744728,0.80716,2476.8,2476.7,1.46679]
[1747527744934,0.80714,2476.9,2476.8,0.80716]
[1747527745129,0.80716,2476.8,2476.7,0.6596]
[1747527745333,1.3684,2476.9,2476.8,0.80716]
[1747527745547,3.2078,2477.0,2476.9,0.80712]
[1747527745946,3.2078,2477.0,2476.9,5.38868037]
[1747527746239,3.2078,2477.0,2476.9,9.83078037]
[1747527747840,4.01489,2477.0,2476.9,9.83078037]
[1747527748039,5.29069,2477.0,2476.9,9.02366037]
[1747527748243,5.29069,2477.0,2476.9,17.09366037]
[1747527748543,4.4836,2477.0,2476.9,17.90078037]
[1747527748943,5.29069,2477.0,2476.9,17.90078037]
[1747527749337,5.29069,2477.0,2476.9,9.83078037]
[1747527749942,4.4836,2477.0,2476.9,9.83078037]
[1747527750140,4.4836,2477.0,2476.9,6.77278037]
[1747527750440,3.2078,2477.0,2476.9,6.77278037]
[1747527751139,3.2078,2477.0,2476.9,9.83078037]
[1747527752946,0.80705,2477.2,2477.1,0.80704]
[1747527753455,2.15325,2477.2,2477.1,0.80704]
[1747527753646,2.15323,2477.2,2477.1,0.80704]
[1747527753946,0.80706,2477.1,2477.0,2.75357]
[1747527754146,2.17326,2477.1,2477.0,2.75357]
[1747527754641,1.3662,2477.1,2477.0,2.75357]
[1747527754841,2.17326,2477.1,2477.0,2.75357]
[1747527755043,1.3662,2477.1,2477.0,2.75357]
[1747527755342,1.3662,2477.1,2477.0,5.81157]
[1747527757547,2.17326,2477.1,2477.0,3.058]
[1747527757845,2.81886,2477.1,2477.0,3.058]
[1747527758147,0.80709,2477.0,2476.9,17.2401]
[1747527758447,0.80719,2476.7,2476.6,5.23156504]
[1747527759244,2.10068,2476.8,2476.7,0.80719]
[1747527759445,2.10061,2477.0,2476.9,0.80712]
[1747527759847,1.2935,2477.0,2476.9,0.80712]
[1747527760041,1.2935,2477.0,2476.9,2.14082]
[1747527760242,1.2935,2477.0,2476.9,5.19882]
[1747527761443,2.10059,2477.0,2476.9,4.3917]
[1747527761748,2.10059,2477.0,2476.9,3.058]
[1747527763148,0.80716,2476.8,2476.7,1.47827]
[1747527763749,0.80716,2476.8,2476.7,0.6711]
[1747527763945,1.381,2476.9,2476.6,6.00074747]
[1747527763946,0.80719,2476.7,2476.6,3.88925747]
[1747527764145,0.80719,2476.7,2476.6,0.01105747]
[1747527764550,2.82239,2476.7,2476.6,0.01105747]
[1747527765749,2.0152,2476.7,2476.6,0.81827747]
[1747527767039,2.82239,2476.7,2476.6,0.01105747]
[1747527770056,2.0152,2476.7,2476.6,0.81827747]
[1747527770246,2.82239,2476.7,2476.6,0.81827747]
[1747527770444,4.21668951,2476.9,2476.8,0.80716]
[1747527771048,4.21668951,2476.9,2476.8,2.18416]
[1747527771248,4.21668951,2476.9,2476.8,5.24216]
[1747527771756,5.02380951,2476.9,2476.8,5.24216]
[1747527772255,5.02380951,2476.9,2476.8,3.058]
[1747527772650,5.68520951,2476.9,2476.8,3.058]
[1747527772849,6.97320951,2476.9,2476.8,3.058]
[1747527773052,5.50468951,2476.9,2476.8,3.86516]